[Event "FRA-ch Youth U14 2018"]
[Site "Agen"]
[Date "2018.04.21"]
[Round "8"]
[White "Girel, Joseph"]
[Black "Bacrot, Alexandre"]
[Result "0-1"]
[ECO "D43"]
[WhiteElo "1969"]
[BlackElo "2180"]
[Annotator "NA"]
[PlyCount "174"]
[EventDate "2018.??.??"]
[EventType "swiss"]
[EventCountry "FRA"]
[SourceTitle "playchess.com"]
[Source "ChessBase"]
[SourceQuality "1"]
[TimeControl "5400+30"]

1. d4 {[%emt 0:00:00]} d5 {[%emt 0:00:03]} 2. c4 {[%emt 0:00:01]} c6 {[%emt 0:00:01]} 3. Nf3 {[%emt 0:00:37]} Nf6 {[%emt 0:00:05]} 4. Nc3 {[%emt 0:00:36]} e6 {[%emt 0:00:14]} 5. Bg5 {[%emt 0:00:58]} h6 {[%emt 0:00:08]} 6. Bxf6 {[%emt 0:02:25]} Qxf6 {[%emt 0:00:01]} 7. e3 {[%emt 0:00:45]} Nd7 {[%emt 0:05:33]} 8. cxd5 {[%emt 0:02:48]} exd5 {[%emt 0:00:23]} 9. Bd3 {[%emt 0:00:30]} Bb4 {[%emt 0:05:20] LiveBook: 3 Games D43: Semi-Slav: 5 Bg5 h6} (9... Qd8 10. O-O Nf6 11. Rb1 a5 12. a3 Bd6 13. b4 O-O 14. h3 Qe7 15. Qb3 Ne4 16. b5 Ng5 17. Nxg5 Qxg5 {½-½ (64) Telljohann,S (2407)-Kunin,V (2527) Korbach 2013}) 10. Qc2 {[%emt 0:02:01]} O-O {[%emt 0:00:50]} 11. O-O {[%emt 0:01:50]} Qe7 {[%emt 0:13:28]} 12. a3 {[%emt 0:02:48]} Bd6 {[%emt 0:00:24]} 13. Rae1 $146 {[%emt 0:07:14]} ({Find the theoretical novelty and annotate with similar games:} 13. e4 dxe4 14. Nxe4 Nf6 15. Rfe1 Nxe4 16. Bxe4 {½-½ (39) Gelas,C (2149)-Giroyan,G (2364) Nimes 2012}) 13... Nf6 {[%emt 0:00:12]} 14. Bf5 {[%emt 0:06:49]} Bxf5 {[%emt 0:00:23]} 15. Qxf5 {[%emt 0:00:35]} Rae8 {[%emt 0:00:01]} 16. Nd2 {[%emt 0:02:23]} g6 {[%emt 0:04:48]} 17. Qf3 {[%emt 0:03:14]} Ne4 {[%emt 0:01:00]} 18. Ncxe4 {[%emt 0:02:17]} dxe4 {[%emt 0:01:01]} 19. Qh3 {[%emt 0:01:21]} Kg7 {[%emt 0:00:15]} 20. f3 {[%emt 0:01:20]} exf3 {[%emt 0:02:08]} 21. Qxf3 {[%emt 0:01:54]} f5 {[%emt 0:00:39]} 22. Nc4 {[%emt 0:12:07]} Bc7 {[%emt 0:04:26]} 23. Rf2 {[%emt 0:05:08]} Qd7 {[%emt 0:02:15]} 24. Rd1 {[%emt 0:04:05]} Re4 {[%emt 0:12:50]} 25. Nd2 {[%emt 0:03:07]} Re6 {[%emt 0:03:22]} 26. Nf1 {[%emt 0:01:07]} Qe7 {[%emt 0:09:52]} 27. g3 {[%emt 0:04:47]} Bb6 {[%emt 0:03:03]} 28. Kg2 {[%emt 0:01:13]} Re4 {[%emt 0:05:19]} 29. Rfd2 {[%emt 0:01:19]} Rd8 {[%emt 0:01:34]} 30. Rd3 {[%emt 0:00:55]} h5 {[%emt 0:04:54]} 31. d5 {[%emt 0:04:53]} cxd5 {[%emt 0:02:41]} 32. Rxd5 {[%emt 0:00:09]} Rxd5 {[%emt 0:00:05]} 33. Rxd5 {[%emt 0:00:04]} Bxe3 {[%emt 0:01:18]} 34. Nxe3 {[%emt 0:01:11]} Rxe3 {[%emt 0:00:07]} 35. Rd7 {[%emt 0:00:04]} Qxd7 {[%emt 0:00:06]} 36. Qxe3 {[%emt 0:00:06]} b6 {[%emt 0:03:55]} 37. Qe5+ {[%emt 0:01:34]} Kh7 {[%emt 0:00:16]} 38. h4 {[%emt 0:02:20]} Qg7 {[%emt 0:01:26]} 39. Qe2 {[%emt 0:01:14]} Qb7+ {[%emt 0:00:12]} 40. Kh2 {[%emt 0:00:30]} Qc7 {[%emt 0:00:06]} 41. Qd2 {[%emt 0:00:26]} Qe7 {[%emt 0:01:52]} 42. Kh3 {[%emt 0:01:20]} g5 {[%emt 0:04:56]} 43. hxg5 {[%emt 0:02:18]} Kg6 {[%emt 0:00:06]} 44. Qd5 {[%emt 0:01:04]} Kxg5 {[%emt 0:00:24]} 45. Qg8+ {[%emt 0:00:25]} Kh6 {[%emt 0:03:21]} 46. Qh8+ {[%emt 0:00:17]} Kg6 {[%emt 0:00:15]} 47. Qg8+ {[%emt 0:00:15]} Qg7 {[%emt 0:00:48]} 48. Qe8+ {[%emt 0:01:59]} Qf7 {[%emt 0:01:55]} 49. Qc6+ {[%emt 0:02:05]} Qf6 {[%emt 0:00:14]} 50. Qe8+ {[%emt 0:00:12]} Kh6 {[%emt 0:00:21]} 51. Qe3+ {[%emt 0:00:20]} Kh7 {[%emt 0:00:15]} 52. Qe8 {[%emt 0:00:31]} Kh6 {[%emt 0:01:37]} 53. Qe3+ {[%emt 0:00:11]} Kg7 {[%emt 0:00:01]} 54. Qe2 {[%emt 0:01:26]} Qc6 {[%emt 0:02:17]} 55. Kh2 {[%emt 0:01:13]} Kg6 {[%emt 0:00:38]} 56. Qd2 {[%emt 0:01:08]} Qc7 {[%emt 0:01:03]} 57. Kh3 {[%emt 0:00:56]} Qe5 $15 {[%emt 0:02:05]} 58. b4 {[%emt 0:02:48]} Qe6 {[%emt 0:00:21]} 59. Kh2 {[%emt 0:00:59]} Qe5 {[%emt 0:00:50]} 60. Kh3 {[%emt 0:01:10]} Qe6 {[%emt 0:00:37]} 61. Kh2 {[%emt 0:00:01]} a6 {[%emt 0:00:12]} 62. Qd3 {[%emt 0:01:33]} b5 {[%emt 0:00:15]} 63. Qd8 {[%emt 0:01:39]} Qe2+ {[%emt 0:00:22]} 64. Kh3 {[%emt 0:00:37]} Qf1+ {[%emt 0:00:32]} 65. Kh2 {[%emt 0:00:05]} Qf2+ {[%emt 0:00:06]} 66. Kh3 {[%emt 0:00:03]} Qf1+ {[%emt 0:00:14]} 67. Kh2 {[%emt 0:00:04]} Qe2+ {[%emt 0:00:25]} 68. Kh3 {[%emt 0:00:30]} Qe6 {[%emt 0:00:04]} 69. Kh2 {[%emt 0:00:16]} f4 {[%emt 0:02:22]} 70. gxf4 {[%emt 0:01:51]} Qe2+ {[%emt 0:00:07]} 71. Kg1 {[%emt 0:00:43]} Qg4+ {[%emt 0:00:05]} 72. Kh1 {[%emt 0:00:13]} Qh3+ {[%emt 0:00:22]} 73. Kg1 {[%emt 0:00:05]} Qg3+ {[%emt 0:00:02]} 74. Kh1 {[%emt 0:00:07]} Qxf4 {[%emt 0:00:23]} 75. Qd3+ {[%emt 0:02:47]} Kg5 {[%emt 0:01:15]} 76. Kg2 {[%emt 0:00:39]} Qg4+ {[%emt 0:00:50]} 77. Kh2 {[%emt 0:00:09]} Qh4+ {[%emt 0:00:13]} 78. Kg2 {[%emt 0:00:05]} Qg4+ {[%emt 0:00:12]} 79. Kh2 {[%emt 0:00:05]} Kf4 {[%emt 0:01:18]} 80. Qf1+ {[%emt 0:05:13]} Ke3 {[%emt 0:00:38]} 81. Qc1+ {[%emt 0:00:09]} Kd3 {[%emt 0:00:16]} 82. Qc6 {[%emt 0:00:56]} Qh4+ {[%emt 0:01:42]} 83. Kg2 {[%emt 0:00:09]} Qe4+ {[%emt 0:00:05]} 84. Kh2 Qh4+ 85. Kg1 Qe1+ 86. Kh2 Qf2+ 87. Kh3 Ke2 0-1

[Event "FRA-ch Youth U14 2018"]
[Site "Agen"]
[Date "2018.04.21"]
[Round "8"]
[White "Randrianarimanana, Alicia"]
[Black "Kuhn, Mathilde"]
[Result "1-0"]
[ECO "E91"]
[WhiteElo "1872"]
[BlackElo "1742"]
[Annotator "NA"]
[PlyCount "85"]
[EventDate "2018.??.??"]
[EventType "swiss"]
[EventCountry "FRA"]
[SourceTitle "playchess.com"]
[Source "ChessBase"]
[SourceQuality "1"]
[TimeControl "5400+30"]

1. d4 {[%emt 0:00:00]} Nf6 {[%emt 0:00:10]} 2. c4 {[%emt 0:00:00]} g6 {[%emt 0:00:08]} 3. Nc3 {[%emt 0:00:00]} Bg7 {[%emt 0:00:10]} 4. e4 {[%emt 0:00:00]} d6 {[%emt 0:00:20]} 5. Nf3 {[%emt 0:00:06]} O-O {[%emt 0:00:32]} 6. Be2 {[%emt 0:00:03]} Nbd7 {[%emt 0:00:43]} 7. O-O {[%emt 0:00:19]} e5 {[%emt 0:00:57]} 8. d5 {[%emt 0:00:05]} Nc5 {[%emt 0:00:58]} 9. Qc2 {[%emt 0:00:06]} a5 {[%emt 0:01:38]} 10. Ne1 {[%emt 0:03:01]} Ne8 {[%emt 0:05:38]} 11. Be3 {[%emt 0:00:10]} f5 {[%emt 0:02:47]} 12. f3 {[%emt 0:00:06] E94: King's Indian: Classical: 6 Be2 e5 7 0-0: Various Black 7th moves} f4 {[%emt 0:02:22]} 13. Bf2 {[%emt 0:00:01]} g5 {[%emt 0:02:59]} 14. a3 {[%emt 0:00:49]} h5 $146 {[%emt 0:05:26]} ({Predecessor:} 14... Rf6 15. Bxc5 dxc5 16. Nd3 Qe7 17. b4 axb4 18. axb4 Rxa1 19. Rxa1 cxb4 {½-½ (80) Gorozhankina,J (2129)-Biryukov,D (2332) Moscow 2012}) 15. Qd1 {[%emt 0:01:04]} Nf6 {[%emt 0:05:03]} 16. b4 {[%emt 0:00:11]} axb4 {[%emt 0:02:37]} 17. axb4 {[%emt 0:00:01]} Rxa1 {[%emt 0:00:23]} 18. Qxa1 {[%emt 0:00:00]} Na6 {[%emt 0:06:12]} 19. Nd3 {[%emt 0:00:10]} g4 {[%emt 0:02:55]} 20. c5 {[%emt 0:03:06]} Nh7 {[%emt 0:07:05]} 21. c6 {[%emt 0:27:46]} bxc6 {[%emt 0:07:04]} (21... b6 $16 {might work better.} 22. Ne1 Nxb4) 22. dxc6 {[%emt 0:00:07]} Nb8 {[%emt 0:00:43]} ({Better is} 22... gxf3 $18 23. Bxf3 Ng5) 23. b5 {[%emt 0:00:05]} Qg5 {[%emt 0:03:07]} 24. Qe1 {[%emt 0:03:48]} Bf6 {[%emt 0:09:51]} 25. Nd5 {[%emt 0:10:25]} Bd8 {[%emt 0:08:02]} 26. Qc1 {[%emt 0:14:12]} Kh8 {[%emt 0:01:43]} 27. Qe1 {[%emt 0:21:46]} Rg8 {[%emt 0:00:24]} 28. fxg4 {[%emt 0:01:42]} hxg4 {[%emt 0:00:32]} 29. g3 {[%emt 0:00:18]} f3 {[%emt 0:01:48]} 30. Bd1 {[%emt 0:00:10]} Qh5 {[%emt 0:01:30]} 31. Be3 {[%emt 0:01:51]} Rg6 {[%emt 0:02:11]} 32. Rf2 {[%emt 0:02:52]} Bg5 {[%emt 0:02:35]} 33. Nxc7 Rh6 {[%emt 0:00:53]} 34. Nd5 {[%emt 0:05:38]} Be6 $18 {[%emt 0:01:26]} 35. c7 {[%emt 0:00:48]} Qe8 {[%emt 0:01:08]} 36. cxb8=Q {[%emt 0:00:28]} Qxb8 {[%emt 0:00:06]} 37. Rb2 {[%emt 0:01:02]} Bxd5 {[%emt 0:00:48]} 38. exd5 {[%emt 0:00:03]} Qb7 {[%emt 0:01:51]} 39. Bxg5 {[%emt 0:01:53]} Nxg5 {[%emt 0:00:15]} 40. Qe3 {[%emt 0:00:12]} f2+ {[%emt 0:08:46]} 41. Nxf2 {[%emt 0:00:21]} Qg7 {[%emt 0:01:09]} 42. Bxg4 {[%emt 0:00:49]} e4 {[%emt 0:00:12]} 43. Rb1 {[%emt 0:00:21]} 1-0

[Event "FRA-ch Youth U14 2018"]
[Site "Agen"]
[Date "2018.04.21"]
[Round "8"]
[White "Bellahcene, Sofia"]
[Black "Nguyen, Thao Nhi"]
[Result "1-0"]
[ECO "B02"]
[WhiteElo "1701"]
[BlackElo "1861"]
[Annotator "NA"]
[PlyCount "57"]
[EventDate "2018.??.??"]
[EventType "swiss"]
[EventCountry "FRA"]
[SourceTitle "playchess.com"]
[Source "ChessBase"]
[SourceQuality "1"]
[TimeControl "5400+30"]

1. e4 {[%emt 0:00:00]} Nf6 {[%emt 0:00:04]} 2. e5 {[%emt 0:00:05]} Nd5 {[%emt 0:00:06]} 3. c4 {[%emt 0:00:15]} Nb6 {[%emt 0:00:17]} 4. c5 {[%emt 0:00:25]} Nd5 {[%emt 0:00:35]} 5. Nc3 {[%emt 0:00:27]} Nxc3 {[%emt 0:01:05]} 6. dxc3 {[%emt 0:00:15]} d6 {[%emt 0:00:36]} 7. Nf3 {[%emt 0:00:53] B02: Alekhine's Defence: Chase Variation and lines with early Nc3} Nc6 {[%emt 0:06:25]} 8. Bb5 {[%emt 0:00:29]} Bd7 {[%emt 0:02:09]} 9. Qe2 $146 {[%emt 0:10:50]} ({Predecessor:} 9. cxd6 exd6 10. exd6 Bxd6 11. O-O O-O 12. Bg5 Qc8 13. Re1 a6 14. Ba4 Bg4 15. Qd3 {½-½ (15) Letreguilly,O (2274)-Guadalpi,D (2317) Port Barcares 2005}) 9... dxe5 {[%emt 0:11:57]} 10. O-O {[%emt 0:04:14]} e6 {[%emt 0:02:18]} 11. Rd1 Bxc5 {[%emt 0:08:33]} 12. Bxc6 {[%emt 0:07:58]} bxc6 {[%emt 0:02:47]} 13. Qxe5 {[%emt 0:00:58]} Qe7 {[%emt 0:12:12]} 14. Qxg7 {[%emt 0:02:45]} O-O-O {[%emt 0:10:07]} 15. Bg5 {[%emt 0:02:43]} Qf8 {[%emt 0:01:18]} 16. Qxf8 {[%emt 0:02:15]} Rdxf8 {[%emt 0:00:32]} 17. Bf6 {[%emt 0:01:00]} Rhg8 {[%emt 0:00:17]} 18. Ne5 {[%emt 0:02:24]} Bd6 {[%emt 0:03:07]} 19. Nc4 {[%emt 0:01:25]} Bf4 $16 {[%emt 0:02:30]} 20. Rd4 {[%emt 0:06:28]} Bg5 {[%emt 0:04:02]} 21. Bxg5 {[%emt 0:01:37]} Rxg5 {[%emt 0:00:06]} 22. Rad1 {[%emt 0:00:10]} Be8 {[%emt 0:02:06]} 23. Rd8+ {[%emt 0:02:17]} Kb7 24. b4 {[%emt 0:00:29]} Rfg8 {[%emt 0:03:17]} 25. g3 {[%emt 0:01:18]} Rd5 {[%emt 0:02:47]} 26. Na5+ {[%emt 0:02:34]} Kb6 {[%emt 0:01:19]} 27. Rb8+ {[%emt 0:06:47]} Ka6 {[%emt 0:00:45]} 28. Rxd5 {[%emt 0:00:16]} cxd5 {[%emt 0:00:38]} 29. Nb3 {[%emt 0:00:08]} 1-0

[Event "FRA-ch Youth U14 2018"]
[Site "Agen"]
[Date "2018.04.21"]
[Round "8"]
[White "Tomasi, Elise"]
[Black "Chemla, Anouk"]
[Result "1-0"]
[ECO "A49"]
[WhiteElo "1689"]
[BlackElo "1705"]
[Annotator "NA"]
[PlyCount "132"]
[EventDate "2018.??.??"]
[EventType "swiss"]
[EventCountry "FRA"]
[SourceTitle "playchess.com"]
[Source "ChessBase"]
[SourceQuality "1"]
[TimeControl "5400+30"]

1. d4 {[%emt 0:00:00]} Nf6 {[%emt 0:00:08]} 2. Nf3 {[%emt 0:00:08]} g6 {[%emt 0:00:11]} 3. g3 {[%emt 0:00:18]} d5 {[%emt 0:01:45]} 4. Bg2 {[%emt 0:01:27]} c5 {[%emt 0:01:54]} 5. O-O {[%emt 0:03:36]} Bg7 {[%emt 0:01:15]} 6. dxc5 {[%emt 0:05:32]} Qa5 {[%emt 0:01:37]} 7. c4 {[%emt 0:07:31]} Qxc5 {[%emt 0:05:00]} 8. cxd5 {[%emt 0:02:30]} Nxd5 {[%emt 0:01:29]} 9. e4 {[%emt 0:02:06]} Nb6 {[%emt 0:04:41]} 10. Nc3 {[%emt 0:05:44]} O-O {[%emt 0:02:39]} 11. Be3 {[%emt 0:02:31]} Qb4 {[%emt 0:03:19]} 12. Qc1 {[%emt 0:13:00]} Rd8 {[%emt 0:08:00]} 13. Bxb6 {[%emt 0:13:39]} axb6 {[%emt 0:05:23]} 14. Nd5 {[%emt 0:03:33]} Qd6 {[%emt 0:02:34]} 15. Rd1 {[%emt 0:03:44]} Nc6 {[%emt 0:12:00]} 16. Nxb6 {[%emt 0:04:30]} Qxd1+ {[%emt 0:00:35]} 17. Qxd1 {[%emt 0:00:06]} Rxd1+ {[%emt 0:00:05]} 18. Rxd1 {[%emt 0:00:07]} Rb8 {[%emt 0:01:11]} 19. b3 {[%emt 0:03:41]} h6 {[%emt 0:02:11]} 20. b4 {[%emt 0:06:27]} Be6 {[%emt 0:02:22]} 21. b5 {[%emt 0:01:24]} Na5 {[%emt 0:01:39]} 22. a4 {[%emt 0:01:34]} Nc4 {[%emt 0:03:21]} 23. Nxc4 {[%emt 0:04:56]} Bxc4 {[%emt 0:00:04]} 24. Rd7 {[%emt 0:02:02]} Kf8 {[%emt 0:01:32]} 25. Bh3 {[%emt 0:02:35]} Bb3 {[%emt 0:02:02]} 26. a5 {[%emt 0:01:55]} Ba4 {[%emt 0:03:28]} 27. Bf1 {[%emt 0:00:34]} Bc3 {[%emt 0:01:32]} 28. Rd3 {[%emt 0:04:32]} Rc8 {[%emt 0:02:27]} 29. a6 {[%emt 0:00:46]} bxa6 {[%emt 0:00:31]} 30. bxa6 {[%emt 0:00:31]} Bc2 {[%emt 0:01:33]} 31. Re3 {[%emt 0:02:24]} Bb4 {[%emt 0:04:09]} 32. Re2 {[%emt 0:01:45]} Bd1 {[%emt 0:03:06]} 33. Re3 {[%emt 0:00:16]} Ke8 {[%emt 0:04:31]} 34. Bb5+ {[%emt 0:00:21]} Kf8 {[%emt 0:01:00]} 35. Kg2 {[%emt 0:00:12]} Ra8 {[%emt 0:08:32]} 36. Ne5 {[%emt 0:00:59]} Kg7 {[%emt 0:04:54]} 37. Nc6 {[%emt 0:00:33]} Bc5 {[%emt 0:01:43]} 38. Rc3 {[%emt 0:00:03]} Bd6 {[%emt 0:00:34]} 39. e5 {[%emt 0:00:47]} Bc7 {[%emt 0:00:44]} 40. Nxe7 {[%emt 0:00:40]} Bxe5 {[%emt 0:00:14]} 41. Rc8 {[%emt 0:00:09]} Rxc8 {[%emt 0:01:35]} 42. Nxc8 {[%emt 0:00:02]} Bb3 {[%emt 0:02:28]} 43. Bc6 {[%emt 0:00:10]} Bd4 {[%emt 0:00:27]} 44. a7 {[%emt 0:00:06]} Bxa7 {[%emt 0:00:06]} 45. Nxa7 {[%emt 0:00:01]} f5 {[%emt 0:00:54]} 46. Nb5 {[%emt 0:00:13]} Kf6 {[%emt 0:00:46]} 47. Kf3 g5 {[%emt 0:00:17]} 48. Nd4 {[%emt 0:00:19]} Bd1+ {[%emt 0:00:59]} 49. Ke3 {[%emt 0:00:09]} Ke5 {[%emt 0:00:47]} 50. f4+ {[%emt 0:00:22]} Kf6 {[%emt 0:00:24]} 51. Bd7 {[%emt 0:00:35]} Bg4 {[%emt 0:00:19]} 52. Kf2 {[%emt 0:00:41]} Bh3 {[%emt 0:00:28]} 53. Nf3 {[%emt 0:00:53]} Kg6 {[%emt 0:00:53]} 54. Ng1 {[%emt 0:00:14]} Bg4 {[%emt 0:00:35]} 55. Nf3 {[%emt 0:00:26]} Bh3 {[%emt 0:00:11]} 56. Ne5+ {[%emt 0:00:05]} Kf6 {[%emt 0:00:28]} 57. Bc6 {[%emt 0:00:07]} Ke6 {[%emt 0:00:31]} 58. Bg2 {[%emt 0:00:07]} Bxg2 {[%emt 0:00:25]} 59. Kxg2 {[%emt 0:00:02]} g4 {[%emt 0:00:42]} 60. h3 {[%emt 0:00:07]} h5 {[%emt 0:00:03]} 61. hxg4 {[%emt 0:00:14]} hxg4 {[%emt 0:00:29]} 62. Kf2 {[%emt 0:00:02]} Kd5 {[%emt 0:00:45]} 63. Ke3 {[%emt 0:00:05]} Kc5 {[%emt 0:00:42]} 64. Ng6 {[%emt 0:00:07]} Kd5 {[%emt 0:00:37]} 65. Nh4 {[%emt 0:00:02]} Ke6 {[%emt 0:00:15]} 66. Kd4 {[%emt 0:00:06]} Kf6 {[%emt 0:00:22] Ke4} 1-0

[Event "FRA-ch Youth U14 2018"]
[Site "Agen"]
[Date "2018.04.21"]
[Round "8"]
[White "Sumarriva Paulin, Laura"]
[Black "Moracchini, Margaux"]
[Result "0-1"]
[ECO "A41"]
[WhiteElo "1665"]
[BlackElo "1939"]
[Annotator "NA"]
[PlyCount "82"]
[EventDate "2018.??.??"]
[EventType "swiss"]
[EventCountry "FRA"]
[SourceTitle "playchess.com"]
[Source "ChessBase"]
[SourceQuality "1"]
[TimeControl "5400+30"]

1. d4 {[%emt 0:00:00]} d6 {[%emt 0:00:06]} 2. c4 {[%emt 0:00:00]} g6 {[%emt 0:00:07]} 3. Nc3 {[%emt 0:00:01]} Bg7 {[%emt 0:00:10]} 4. Bg5 {[%emt 0:01:11]} h6 {[%emt 0:00:27]} 5. Bh4 {[%emt 0:00:15]} Nd7 {[%emt 0:00:52]} 6. Nf3 {[%emt 0:01:14]} f5 {[%emt 0:00:37] A41: 1 d4 d6: Tartakower System and Modern Defence} (6... g5 7. Bg3 f5 8. e3 e5 9. dxe5 dxe5 10. h4 g4 11. Nd2 h5 12. f3 Nh6 13. Be2 O-O 14. Bf2 {0-1 (36) Jacobsen,M (2370)-Hillarp Persson,T (2563) Helsingor 2015}) 7. e3 {[%emt 0:02:34]} Ngf6 {[%emt 0:00:47]} 8. Be2 {[%emt 0:05:27]} O-O {[%emt 0:00:58]} 9. O-O {[%emt 0:01:56]} c5 $146 {[%emt 0:01:49]} ({Predecessor:} 9... e5 10. h3 c6 11. Qb3 Kh7 12. Rfd1 Re8 {0-1 (47) Yoshioka,H (1759)-Ogata,E (2068) Matinhos 2015}) 10. h3 {[%emt 0:04:03]} b6 {[%emt 0:03:34]} 11. Qc2 {[%emt 0:05:04]} Bb7 {[%emt 0:00:34]} 12. Rad1 {[%emt 0:01:21]} (12. d5 $14) 12... Ne4 {[%emt 0:06:37]} 13. Nd2 {[%emt 0:14:41]} Nxc3 {[%emt 0:08:48]} 14. Qxc3 {[%emt 0:02:09]} f4 {[%emt 0:03:09]} 15. exf4 {[%emt 0:11:35]} Rxf4 {[%emt 0:02:36]} 16. Bg3 {[%emt 0:02:28]} Rxd4 {[%emt 0:04:35]} 17. Qc2 {[%emt 0:01:25]} g5 {[%emt 0:03:17]} 18. Rc1 {[%emt 0:08:22]} Qe8 {[%emt 0:10:35]} 19. Bf3 {[%emt 0:05:27]} d5 {[%emt 0:04:17]} 20. cxd5 {[%emt 0:06:31]} Bxd5 {[%emt 0:01:16]} 21. Nb3 {[%emt 0:00:32]} Bxf3 {[%emt 0:13:19]} 22. Nxd4 {[%emt 0:00:31]} Bxg2 {[%emt 0:05:26]} 23. Kxg2 {[%emt 0:02:03]} Bxd4 {[%emt 0:03:28]} 24. Qc4+ {[%emt 0:03:29]} Kg7 {[%emt 0:00:30]} 25. b3 {[%emt 0:00:53]} e5 {[%emt 0:02:57]} 26. Rfe1 {[%emt 0:01:43]} Nf6 {[%emt 0:01:24]} 27. f3 {[%emt 0:00:52]} Rd8 {[%emt 0:05:04]} 28. Bf2 {[%emt 0:06:07]} Bxf2 {[%emt 0:01:17]} 29. Kxf2 {[%emt 0:00:15]} Rd4 {[%emt 0:01:44]} 30. Qe2 {[%emt 0:01:21]} Qd7 {[%emt 0:03:27]} 31. Qxe5 $17 {[%emt 0:03:23]} Qxh3 {[%emt 0:00:18]} 32. Rcd1 {[%emt 0:03:48]} Rf4 {[%emt 0:01:49]} 33. Rd3 {[%emt 0:02:44]} Kg6 {[%emt 0:02:10]} 34. Qe6 {[%emt 0:01:06]} Qh2+ {[%emt 0:02:00]} 35. Kf1 {[%emt 0:00:56]} g4 {[%emt 0:01:22]} 36. Re2 {[%emt 0:01:13]} Qh1+ {[%emt 0:00:45]} 37. Kf2 {[%emt 0:00:10]} gxf3 {[%emt 0:00:39]} 38. Re1 {[%emt 0:01:00]} Qg2+ {[%emt 0:00:31]} 39. Ke3 {[%emt 0:00:15]} Re4+ {[%emt 0:00:35]} 40. Qxe4+ {[%emt 0:00:30]} Nxe4 {[%emt 0:00:01]} 41. Kxe4 {[%emt 0:00:05]} f2+ {[%emt 0:00:03] Kd4} 0-1

[Event "FRA-ch Youth U14 2018"]
[Site "Agen"]
[Date "2018.04.22"]
[Round "9"]
[White "Moracchini, Margaux"]
[Black "Randrianarimanana, Alicia"]
[Result "1-0"]
[ECO "B22"]
[WhiteElo "1939"]
[BlackElo "1872"]
[Annotator "NA RC"]
[PlyCount "123"]
[EventDate "2018.??.??"]
[EventType "swiss"]
[EventCountry "FRA"]
[SourceTitle "playchess.com"]
[Source "ChessBase"]
[SourceQuality "1"]
[TimeControl "5400+30"]

1. e4 {[%emt 0:00:00]} c5 {[%emt 0:00:05]} 2. c3 {[%emt 0:00:00]} Nf6 {[%emt 0:00:18]} 3. e5 {[%emt 0:00:00]} Nd5 {[%emt 0:00:04]} 4. Bc4 {[%emt 0:00:00]} Nb6 {[%emt 0:00:30]} 5. Bb3 {[%emt 0:00:00]} e6 {[%emt 0:00:59]} 6. Nf3 {[%emt 0:00:28]} Nc6 {[%emt 0:00:36]} 7. O-O {[%emt 0:00:30]} d6 {[%emt 0:00:51]} 8. d4 {[%emt 0:05:07]} cxd4 {[%emt 0:04:38]} 9. cxd4 {[%emt 0:00:07]} Be7 {[%emt 0:18:43]} 10. Nc3 {[%emt 0:02:53]} O-O {[%emt 0:01:52] LiveBook: 4 Games} 11. Qe2 {[%emt 0:03:48]} Nd7 {[%emt 0:01:06] B22: Sicilian: 2 c3} (11... d5 12. Bc2 f5 13. exf6 Bxf6 14. Bf4 Bxd4 15. Bg3 Bf6 16. Rad1 Bd7 17. Nb5 Nb4 18. Bb1 Bxb5 19. Qxb5 {½-½ (52) Petrisor,A (2419)-Meskovs,N (2546) Neustadt an der Weinstrasse 2018}) 12. exd6 $146 {[%emt 0:04:51]} ({Predecessor:} 12. Rd1 d5 13. Bc2 Re8 14. a3 Nf8 15. h4 f5 16. exf6 Bxf6 17. Bf4 a6 18. h5 Bd7 19. Bd6 {1-0 (36) Biro,S (2273)-Solty,L (2116) Hungary 2014}) 12... Bxd6 {[%emt 0:00:08]} 13. Ne4 {[%emt 0:00:39]} Be7 {[%emt 0:01:15]} 14. Rd1 {[%emt 0:10:29]} Nb6 {[%emt 0:12:59]} 15. Ne5 {[%emt 0:19:35]} Nd5 {[%emt 0:07:34]} 16. Rd3 {[%emt 0:07:00]} Qc7 $2 {[%emt 0:18:00]} ({Black should play} 16... f6 $14 17. Nxc6 bxc6) 17. Nxc6 $2 {[%emt 0:04:08]} (17. Rh3 $18 Nxe5 18. Qh5) 17... bxc6 {[%emt 0:00:02]} 18. Rg3 {[%emt 0:01:35]} Nf6 {[%emt 0:03:37]} 19. Nc5 {[%emt 0:02:50]} Bd6 {[%emt 0:00:36]} 20. Rf3 {[%emt 0:06:35]} Bxh2+ {[%emt 0:01:52]} 21. Kh1 {[%emt 0:00:07]} Bd6 $1 {[%emt 0:00:08]} 22. Rxf6 {[%emt 0:01:20]} gxf6 {[%emt 0:00:11]} 23. Bh6 {[%emt 0:00:04]} Kh8 {[%emt 0:03:11]} 24. Qf3 {[%emt 0:02:25]} Be7 {[%emt 0:02:46]} 25. Bxf8 {[%emt 0:00:17]} Bxf8 {[%emt 0:00:00]} 26. Qxf6+ {[%emt 0:00:12]} Bg7 {[%emt 0:00:03]} 27. Qh4 {[%emt 0:00:56]} Qd6 {[%emt 0:01:53]} ({Better is} 27... a5) 28. Rd1 {[%emt 0:00:24]} a5 {[%emt 0:02:30]} 29. Ne4 {[%emt 0:02:40]} Qc7 {[%emt 0:00:06]} 30. Nf6 {[%emt 0:03:18]} h6 {[%emt 0:00:38]} 31. Ne8 {[%emt 0:00:28]} (31. Bc2 $142 Bxf6 32. Qxf6+ Kg8 33. Rd3) 31... Qd7 {[%emt 0:00:26]} 32. Nxg7 {[%emt 0:00:16]} Kxg7 {[%emt 0:00:02]} 33. Rd3 {[%emt 0:00:33]} Qe8 {[%emt 0:03:08]} 34. Rg3+ {[%emt 0:00:17]} Kf8 {[%emt 0:01:19]} 35. Qxh6+ {[%emt 0:00:10]} Ke7 {[%emt 0:00:04]} 36. Qh4+ {[%emt 0:02:33]} Kd7 {[%emt 0:00:01]} 37. Qe4 {[%emt 0:01:48]} Bb7 {[%emt 0:00:37]} 38. Ba4 {[%emt 0:01:18]} Kd8 $2 {[%emt 0:03:52]} (38... Rd8 39. Kg1 Kc8) 39. Qe5 {[%emt 0:01:01]} Kd7 {[%emt 0:01:17]} 40. Kg1 {[%emt 0:01:34]} Qb8 $2 {[%emt 0:01:13]} (40... Rd8 41. Rg7 Qe7) 41. Qf6 {[%emt 0:00:43]} Qf8 {[%emt 0:00:30]} 42. Rg7 {[%emt 0:00:23]} Ke8 {[%emt 0:00:06]} 43. Rh7 {[%emt 0:00:07]} Qe7 {[%emt 0:00:21]} 44. Qe5 {[%emt 0:01:03]} Kd7 {[%emt 0:00:32]} 45. d5 {[%emt 0:00:43]} Ra6 {[%emt 0:04:21]} 46. Qb8 {[%emt 0:01:31]} Ba8 {[%emt 0:01:33]} 47. d6 {[%emt 0:00:38]} Qxd6 {[%emt 0:04:23]} 48. Rxf7+ {[%emt 0:00:10]} Qe7 {[%emt 0:00:26]} 49. Rxe7+ {[%emt 0:00:09]} Kxe7 {[%emt 0:00:00]} 50. Qc7+ {[%emt 0:01:01]} Kf6 {[%emt 0:00:12]} 51. g4 {[%emt 0:00:42]} c5 {[%emt 0:00:09]} 52. Bb5 {[%emt 0:00:35]} Bb7 {[%emt 0:01:05]} 53. Bxa6 {[%emt 0:00:32]} Bxa6 {[%emt 0:00:05]} 54. Qxc5 {[%emt 0:00:06]} Be2 {[%emt 0:00:22]} 55. g5+ {[%emt 0:00:18]} Kf7 {[%emt 0:00:12]} 56. Qxa5 {[%emt 0:00:05]} Bg4 {[%emt 0:00:20]} 57. Qc7+ {[%emt 0:00:32]} Kg6 {[%emt 0:00:11]} 58. Qf4 {[%emt 0:00:03]} Bf5 {[%emt 0:00:07]} 59. Qxf5+ {[%emt 0:00:18]} Kxf5 {[%emt 0:00:26]} 60. a4 {[%emt 0:00:03]} Kxg5 {[%emt 0:00:05]} 61. a5 {[%emt 0:00:00]} Kf5 {[%emt 0:00:33]} 62. a6 {[%emt 0:00:04]} 1-0